bitfinex-derivatives/quotes_BNBF0:USTF0_20250112
["timestamp","ask_amount","ask_price","bid_price","bid_amount"]
[1736669776491,1.07826224,694.6,693.49,4.82635365]
[1736669776790,1.07826224,694.6,693.5,2.71988567]
[1736669777890,1.07826224,694.6,693.49,1.82224529]
[1736669778091,1.07826224,694.6,693.49,0.89776537]
[1736669778289,1.07826224,694.6,693.49,2.72001066]
[1736669778488,0.28791063,694.66,693.49,2.72001066]
[1736669778489,1.07826224,694.59,693.49,2.72001066]
[1736669778686,1.07826224,694.59,693.49,1.82224529]
[1736669779091,1.07826224,694.59,693.48,3.00410836]
[1736669779292,1.07826224,694.61,693.47,4.82635365]
[1736669779593,1.07826224,694.61,693.48,1.82224529]
[1736669779789,1.07826224,694.61,693.47,3.00410836]
[1736669780396,1.07826224,694.61,693.47,0.89775734]
[1736669780592,1.07826224,694.61,693.45,2.72000263]
[1736669781293,1.07826224,694.6,693.47,1.2907503]
[1736669782091,1.07826224,694.6,693.47,4.01075293]
[1736669782393,1.07826224,694.6,693.48,0.89775734]
[1736669783297,1.07826224,694.6,693.47,3.11299559]
[1736669783505,0.28793964,694.59,693.48,3.00410836]
[1736669783700,1.07826224,694.57,693.48,3.00410836]
[1736669784300,1.36621017,694.57,693.48,3.00410836]
[1736669784895,1.36621017,694.57,693.44,1.2907503]
[1736669785101,1.07826224,694.56,693.36,1.82306511]
[1736669786104,0.28794793,694.57,693.36,1.82306511]
[1736669786403,0.28794793,694.57,693.35,0.2884546]
[1736669810619,1.36621017,694.57,693.35,0.2884546]
[1736669812625,1.07826224,694.56,693.35,0.2884546]
[1736669812819,0.28795623,694.55,693.35,0.2884546]
[1736669815131,1.36621847,694.55,693.35,0.2884546]
[1736669816229,1.07826224,694.54,693.35,0.2884546]
[1736669816431,0.28796452,694.53,693.35,0.2884546]
[1736669817130,1.36622676,694.53,693.35,0.2884546]
[1736669818233,1.07826224,694.51,693.35,0.2884546]
[1736669818433,0.28797696,694.5,693.35,0.2884546]
[1736669819149,1.3662392,694.5,693.35,0.2884546]
[1736669820335,1.07826224,694.49,693.35,0.2884546]
[1736669820535,0.28798525,694.48,693.35,0.2884546]
[1736669823736,1.36624749,694.48,693.35,0.2884546]
[1736669825639,1.07826224,694.47,693.35,0.2884546]
[1736669826041,1.36624749,694.48,693.35,0.2884546]
[1736669826335,0.2879894,694.47,693.35,0.2884546]
[1736669870175,0.2879894,694.47,693.35,1.5792049]
[1736669871570,0.2879894,694.47,693.37,1.2907503]
[1736669872474,0.2879894,694.47,693.38,1.2907503]
[1736669873378,0.2879894,694.47,693.41,1.2907503]
[1736669874279,0.2879894,694.47,693.42,1.2907503]
[1736669876273,0.2879894,694.47,693.43,1.2907503]
[1736669879080,0.2879894,694.47,693.44,1.2907503]
[1736669880575,0.2879894,694.47,693.44,3.1098453]
[1736669881483,0.2879894,694.47,693.45,1.2907503]
[1736669882280,0.2879894,694.47,693.45,4.29485866]
[1736669882480,0.2879894,694.47,693.46,1.819095]
[1736669883173,0.2879894,694.47,693.46,4.82320336]
[1736669883380,0.2879894,694.47,693.47,1.2907503]
[1736669883579,0.2879894,694.47,693.47,3.1098453]
[1736669884785,0.2879894,694.47,693.48,3.00410836]
[1736669884979,0.2879894,694.47,693.48,4.82320336]
[1736669885485,0.2879894,694.47,693.49,1.819095]
[1736669885888,0.2879894,694.47,693.48,3.00410836]
[1736669886186,0.2879894,694.47,693.47,1.819095]
[1736669886187,0.2879894,694.47,693.47,4.82320336]
[1736669886388,0.2879894,694.47,693.47,6.11395366]
[1736669886687,0.2879894,694.47,693.48,1.819095]
[1736669887388,0.2879894,694.47,693.48,4.82320336]
[1736669894187,0.2879894,694.47,693.48,6.11395366]
[1736669894388,0.2879894,694.47,693.49,1.819095]
[1736669895591,0.2879894,694.47,693.49,4.82320336]
[1736669896292,0.2879894,694.47,693.5,1.819095]
[1736669896492,0.2879894,694.47,693.49,3.00410836]
[1736669897393,0.2879894,694.47,693.48,1.819095]
[1736669897587,0.2879894,694.47,693.47,1.819095]
[1736669897787,0.2879894,694.47,693.46,1.2907503]
[1736669901096,0.2879894,694.47,693.46,3.1098453]
[1736669902095,0.2879894,694.47,693.47,3.00410836]
[1736669902292,0.2879894,694.47,693.47,4.82320336]
[1736669903598,0.2879894,694.47,693.47,1.819095]
[1736669903798,0.2879894,694.47,693.48,1.2907503]
[1736669905098,0.2879894,694.47,693.4,0.89668392]
[1736669905099,0.2879894,694.47,693.52,1.2907503]
[1736669906097,0.2879894,694.47,693.5,1.2907503]
[1736669907104,0.2879894,694.47,693.49,1.2907503]
[1736669909105,0.2879894,694.47,693.49,4.00652922]
[1736669909303,0.2879894,694.47,693.49,1.819095]
[1736669909602,0.2879894,694.47,693.49,2.71552034]
[1736669910005,0.2879894,694.47,693.49,5.7196287]
[1736669910304,0.2879894,694.47,693.5,1.819095]
[1736669910702,0.2879894,694.47,693.49,3.00410836]
[1736669911201,0.2879894,694.47,693.49,4.82320336]
[1736669911702,0.2879894,694.47,693.5,1.819095]
[1736669911902,0.2879894,694.47,693.47,4.82320336]
[1736669912505,0.2879894,694.47,693.48,1.819095]
[1736669912706,0.2879894,694.47,693.47,3.00410836]
[1736669913206,0.2879894,694.47,693.17,2.19606823]
[1736669913207,0.2879894,694.47,693.44,1.819095]
[1736669913406,0.2879894,694.47,693.39,2.71542599]
[1736669913801,0.2879894,694.47,693.39,4.00617629]
[1736669914002,0.2879894,694.47,693.4,2.71542599]
[1736669914501,0.2879894,694.47,693.4,5.71953435]
[1736669914702,0.2879894,694.47,693.41,2.71542599]
[1736669915701,0.2879894,694.47,693.41,5.71953435]
[1736669915905,0.2879894,694.47,693.42,2.71542599]
[1736669918308,0.2879894,694.47,693.42,1.819095]
[1736669918509,0.2879894,694.47,693.41,4.82320336]
[1736669919011,0.2879894,694.47,693.42,1.819095]
[1736669919412,0.2879894,694.47,693.41,3.00410836]
[1736669920011,0.2879894,694.47,693.38,1.819095]
[1736669920212,0.2879894,694.47,693.35,3.00367853]
[1736669921214,0.2879894,694.47,693.35,6.00778689]
[1736669921408,0.2879894,694.47,693.36,2.71522393]
[1736669922408,0.2879894,694.47,693.36,5.71933229]
[1736669922613,0.2879894,694.47,693.37,2.71522393]
[1736669923513,0.2879894,694.47,693.36,3.00410836]
[1736669924013,0.2879894,694.47,693.35,1.5792049]
[1736669924814,0.2879894,694.47,693.35,0.2884546]
[1736669934023,0.2879894,694.47,693.4,1.2907503]
[1736669935518,0.2879894,694.47,693.39,1.2907503]
[1736669936521,0.2879894,694.47,693.38,1.2907503]
[1736669938330,0.2879894,694.47,693.38,4.00902119]
[1736669938530,0.2879894,694.47,693.39,0.8960975]
[1736669938934,0.2879894,694.47,693.4,1.2907503]
[1736669939731,0.2879894,694.47,693.4,4.00902119]
[1736669939927,0.2879894,694.47,693.41,0.8960975]
[1736669941027,0.2879894,694.47,693.41,3.90020586]
[1736669941237,0.2879894,694.47,693.42,1.82217339]
[1736669941432,0.2879894,694.47,693.42,2.71827089]
[1736669942135,0.2879894,694.47,693.42,4.00902119]
[1736669942336,0.2879894,694.47,693.43,0.8960975]
[1736669942635,0.2879894,694.47,693.43,3.90020586]
[1736669942935,0.2879894,694.47,693.44,1.82217339]
[1736669943137,0.2879894,694.47,693.44,4.00902119]
[1736669943334,0.2879894,694.47,693.45,0.8960975]
[1736669944035,0.2879894,694.47,693.45,3.90020586]
[1736669944236,0.2879894,694.47,693.46,3.11292369]
[1736669944436,0.2879894,694.47,693.47,0.8960975]
[1736669945530,0.2879894,694.47,693.46,3.11292369]
[1736669945730,0.2879894,694.47,693.47,3.00410836]
[1736669945929,0.2879894,694.47,693.47,4.82628175]
[1736669946134,0.2879894,694.47,693.47,6.11703205]
[1736669946336,0.2879894,694.47,693.48,1.82217339]
[1736669947529,0.2879894,694.47,693.44,4.82628175]
[1736669947728,0.2879894,694.47,693.45,0.89583149]
[1736669948032,0.2879894,694.47,693.45,2.71800488]
[1736669949335,0.2879894,694.47,693.45,5.72211324]
[1736669949535,0.2879894,694.47,693.46,1.82217339]
[1736669949738,0.2879894,694.47,693.45,4.82628175]
[1736669951239,0.2879894,694.47,693.46,1.82217339]
[1736669951634,0.2879894,694.47,693.45,3.00410836]
[1736669951941,0.2879894,694.47,693.43,4.82628175]
[1736669952742,0.2879894,694.47,693.44,1.82217339]
[1736669952941,0.2879894,694.47,693.43,3.00410836]
[1736669953644,0.2879894,694.47,693.41,1.82217339]
[1736669953836,0.2879894,694.47,693.37,4.82628175]
[1736669954041,0.2879894,694.47,693.37,3.00410836]
[1736669954637,0.2879894,694.47,693.35,0.2884546]
[1736669955641,1.07826224,694.54,693.27,1.8226692]
[1736669955938,1.07826224,694.55,693.26,3.00410836]
[1736669956342,1.07826224,694.55,693.19,4.8264964]
[1736669957046,1.07826224,694.58,693.19,4.8264964]
[1736669957246,1.07826224,694.58,693.2,1.82238804]
[1736669957539,1.07826224,694.58,693.08,4.8264964]
[1736669957744,1.07826224,694.58,693.09,2.71814232]
[1736669958449,1.07826224,694.58,693.13,1.2907503]
[1736669959144,1.07826224,694.59,693.12,0.89575428]
[1736669960040,1.07826224,694.6,693.12,3.89986264]
[1736669960245,1.07826224,694.6,693.13,1.82238804]
[1736669960443,1.07826224,694.6,693.13,2.71814232]
[1736669960946,1.07826224,694.61,693.13,2.71814232]
[1736669961641,1.07826224,694.61,693.11,2.71814232]
[1736669962247,1.07826224,694.62,693.11,2.71814232]
[1736669963142,1.07826224,694.64,693.11,2.71814232]
[1736669963852,1.07826224,694.64,693.1,2.71814232]
[1736669964053,1.07826224,694.66,693.1,4.00889262]
[1736669964251,1.07826224,694.66,693.11,0.89575428]
[1736669964748,1.07826224,694.66,693.11,3.89986264]
[1736669964950,1.07826224,694.65,693.12,1.82238804]
[1736669965155,1.07826224,694.65,693.12,2.71814232]
[1736669965549,1.07826224,694.64,693.12,2.71814232]
[1736669966354,1.07826224,694.64,693.11,2.71814232]
[1736669966558,1.07826224,694.63,693.11,2.71814232]
[1736669966855,1.07826224,694.63,693.15,1.2907503]
[1736669969154,1.07826224,694.64,693.16,1.2907503]
[1736669969354,1.07826224,694.64,693.16,2.18650458]
[1736669970758,1.07826224,694.64,693.16,5.19061294]
[1736669970959,1.07826224,694.61,693.17,2.71814232]
[1736669971661,1.07826224,694.61,693.17,1.82238804]
[1736669972164,1.07826224,694.65,693.17,1.82238804]
[1736669972358,1.07826224,694.65,693.16,3.00410836]
[1736669972756,1.07826224,694.65,693.06,0.89490379]
[1736669972757,1.07826224,694.65,693.07,1.82238804]
[1736669972959,1.07826224,694.65,693.06,2.71729183]
[1736669974263,1.07826224,694.65,693.06,5.72140019]
[1736669974463,1.07826224,694.65,693.07,2.71729183]
[1736669976066,1.07826224,694.64,693.07,2.71729183]
[1736669977962,1.07826224,694.65,693.06,2.71729183]
[1736669978767,1.07826224,694.66,693.06,2.71729183]
[1736669978967,1.07826224,694.66,693.05,2.71729183]
[1736669980267,1.07826224,694.66,693.02,2.71729183]
[1736669980666,1.07826224,694.65,693.02,2.71729183]
[1736669981670,1.07826224,694.64,693.02,2.71729183]
[1736669982469,1.07826224,694.59,693.1,1.2907503]
[1736669983267,1.07826224,694.58,693.12,1.2907503]
[1736669984272,1.07826224,694.58,693.06,0.89490379]
[1736669984273,1.07826224,694.57,693.15,1.2907503]
[1736669985272,1.50444199,694.75,693.17,1.2907503]
[1736669985273,1.07826224,694.55,693.17,1.2907503]
[1736669985866,1.07826224,694.55,693.19,1.2907503]
[1736669986068,1.07826224,694.52,693.19,1.2907503]
[1736669986968,1.07826224,694.53,693.2,1.2907503]
[1736669987970,1.07826224,694.51,693.25,1.2907503]
[1736669988871,1.07826224,694.48,693.28,1.2907503]
[1736669989474,1.07826224,694.44,693.29,1.2907503]
[1736669990269,1.07826224,694.41,693.27,1.2907503]
[1736669991677,1.07826224,694.41,693.26,1.2907503]
[1736669992880,1.07826224,694.41,693.25,1.82238804]
[1736669993079,1.07826224,694.41,693.24,4.8264964]
[1736669993783,1.07826224,694.42,693.24,4.8264964]
[1736669993982,1.36627237,694.42,693.24,4.8264964]
[1736669994484,0.28801013,694.42,693.25,1.2907503]
[1736669994782,0.28801013,694.42,693.25,3.11313834]
[1736669995184,0.28801013,694.42,693.25,1.82238804]
[1736669995482,0.28801013,694.42,693.25,4.8264964]
[1736669996079,0.28801013,694.42,693.25,3.00410836]
[1736669996881,0.28801013,694.42,693.24,1.2907503]
[1736669997283,0.28801013,694.42,693.15,3.00410836]
[1736669998587,0.28801013,694.42,693.06,1.2907503]
[1736669998788,0.28801013,694.42,693.04,1.2907503]
[1736670000688,0.28801013,694.42,693.05,1.2907503]
[1736670001784,0.28801013,694.42,693.01,1.8191377]
[1736670002384,0.28801013,694.42,693.03,1.2907503]
[1736670003790,0.28801013,694.42,693.03,4.29485866]
[1736670003988,0.28801013,694.42,693.04,1.8191377]
[1736670004387,0.28801013,694.42,693.03,4.82324606]
[1736670005493,0.28801013,694.42,693.03,6.11399636]
[1736670005693,0.28801013,694.42,693.04,1.8191377]
[1736670006294,0.28801013,694.42,693.08,1.2907503]
[1736670008196,0.28801013,694.42,692.98,3.00410836]
[1736670009697,0.28801013,694.42,692.92,4.82518943]
[1736670009900,0.28801013,694.42,692.93,2.10971051]
[1736670010099,0.28801013,694.42,692.94,0.28862527]
[1736670024604,0.28801013,694.42,693.07,1.2907503]
[1736670024910,0.28801013,694.42,693.08,0.28856697]
[1736670026410,0.28801013,694.42,693.08,1.57931727]
[1736670027209,0.28801013,694.42,693.09,1.2907503]
[1736670027510,0.28801013,694.42,693.1,0.28855864]
[1736670028407,0.28801013,694.42,693.12,1.2907503]
[1736670028611,0.28801013,694.42,693.13,0.28854616]
[1736670033014,0.28801013,694.42,693.13,1.57929646]
[1736670034216,0.28801013,694.42,693.2,1.2907503]
[1736670035518,0.28801013,694.42,693.17,1.2907503]
[1736670035817,0.28801013,694.42,693.17,1.5792798]
[1736670036217,0.28801013,694.42,693.18,1.2907503]
[1736670037414,0.28801013,694.42,693.19,1.2907503]
[1736670037819,0.28801013,694.42,693.19,2.18328385]
[1736670038716,0.28801013,694.42,693.19,5.18739221]
[1736670038920,0.28801013,694.42,693.2,4.00492906]
[1736670039116,0.28801013,694.42,693.21,0.89253355]
[1736670040016,0.28801013,694.42,693.21,5.18739221]
[1736670040215,0.28801013,694.42,693.22,2.71417876]
[1736670042423,0.28801013,694.42,693.22,5.71828712]
[1736670042623,0.28801013,694.42,693.23,2.71417876]
[1736670043224,0.28801013,694.42,693.23,4.00492906]
[1736670043523,0.28801013,694.42,693.24,0.89253355]
[1736670044124,0.28801013,694.42,693.24,3.89664191]
[1736670044324,0.28801013,694.42,693.25,1.82164521]
[1736670044524,0.28801013,694.42,693.25,2.71417876]
[1736670045826,0.28801013,694.42,693.25,5.71828712]
[1736670046125,0.28801013,694.42,693.26,2.71417876]
[1736670046326,0.28801013,694.42,693.26,4.00492906]
[1736670046526,0.28801013,694.42,693.27,0.89253355]
[1736670046929,0.28801013,694.42,693.29,1.2907503]
[1736670047728,0.28801013,694.42,693.29,2.18328385]
[1736670048227,0.28801013,694.42,693.33,1.2907503]
[1736670048826,0.28801013,694.42,693.42,1.2907503]
[1736670049627,0.28801013,694.42,693.41,1.2907503]
[1736670052725,0.28801013,694.42,693.42,1.2907503]
[1736670053530,0.28801013,694.42,693.41,1.2907503]
[1736670054230,0.28801013,694.42,693.41,3.11239551]
[1736670055030,0.28801013,694.42,693.42,1.2907503]
[1736670055432,0.28801013,694.42,693.42,4.29485866]
[1736670055625,0.28801013,694.42,693.43,1.82164521]
[1736670055829,0.28801013,694.42,693.42,4.29485866]
[1736670056526,0.28801013,694.42,693.43,1.81856105]
[1736670057127,0.28801013,694.42,693.43,6.11341971]
[1736670057331,0.28801013,694.42,693.44,1.81856105]
[1736670058727,0.28801013,694.42,693.44,4.82266941]
[1736670059731,0.28801013,694.42,693.45,1.81856105]
[1736670059929,0.28801013,694.42,693.44,3.00410836]
[1736670060135,0.28801013,694.42,693.43,4.82266941]
[1736670061035,0.28801013,694.42,693.43,6.11341971]
[1736670061235,0.28801013,694.42,693.44,1.81856105]
[1736670061837,0.28801013,694.42,693.44,4.82266941]
[1736670063136,0.28801013,694.42,693.45,1.81856105]
[1736670063537,0.28801013,694.42,693.43,4.82266941]
[1736670063941,0.28801013,694.42,693.43,6.11341971]
[1736670064137,0.28801013,694.42,693.44,1.81856105]
[1736670064537,0.28801013,694.42,693.44,4.82266941]
[1736670065034,0.28801013,694.42,693.45,1.81856105]
[1736670065740,0.28801013,694.42,693.42,4.82266941]
[1736670066341,0.28801013,694.42,693.43,1.2907503]
[1736670066541,0.28801013,694.42,693.43,3.10931135]
[1736670067443,0.28801013,694.42,693.44,3.00410836]
[1736670067742,0.28801013,694.42,693.44,4.82266941]
[1736670068637,0.28801013,694.42,693.44,3.00410836]
[1736670069438,0.28801013,694.42,693.36,1.2907503]
[1736670070642,0.28801013,694.42,693.37,1.2907503]
[1736670071440,0.28801013,694.42,693.37,3.11197372]
[1736670071645,0.28801013,694.42,693.37,1.82122342]
[1736670072043,0.28801013,694.42,693.31,4.82533178]
[1736670072646,0.28801013,694.42,693.31,6.11608208]
[1736670072847,0.28801013,694.42,693.32,1.82122342]
[1736670073840,0.28801013,694.42,693.32,0.89438109]
[1736670074044,0.28801013,694.42,693.32,2.71473942]
[1736670075245,0.28801013,694.42,693.32,2.71448265]
[1736670075640,0.28801013,694.42,693.32,4.82533178]
[1736670076741,0.28801013,694.42,693.33,1.82122342]
[1736670076939,0.28801013,694.42,693.29,4.82533178]
[1736670077645,0.28801013,694.42,693.29,6.11608208]
[1736670077847,0.28801013,694.42,693.3,1.82122342]
[1736670078045,0.28801013,694.42,693.3,2.71444922]
[1736670078445,0.28801013,694.42,693.3,5.71855758]
[1736670078641,0.28801013,694.42,693.31,2.71444922]
[1736670079548,0.28801013,694.42,693.36,1.2907503]
[1736670081448,0.28801013,694.42,693.43,1.2907503]
[1736670083046,0.28801013,694.42,693.44,1.2907503]
[1736670087252,0.28801013,694.42,693.44,2.1839761]
[1736670088356,0.28801013,694.42,693.44,5.18808446]
[1736670088557,0.28801013,694.42,693.45,2.71444922]
[1736670088953,0.28801013,694.42,693.44,4.29485866]
[1736670089354,0.28801013,694.42,693.45,1.2907503]
[1736670090156,0.28801013,694.42,693.36,3.00410836]
[1736670091651,0.28801013,694.42,693.26,4.82682797]
[1736670095966,0.28801013,694.42,693.26,6.11757827]
[1736670096166,0.28801013,694.42,693.27,1.82271961]
[1736670096665,0.28801013,694.42,693.27,4.82682797]
[1736670097260,0.28801013,694.42,693.28,1.82271961]
[1736670098260,0.28801013,694.42,693.26,4.82682797]
[1736670099066,0.28801013,694.42,693.27,0.892998]
[1736670099267,0.28801013,694.42,693.27,2.71571761]
[1736670099567,0.28801013,694.42,693.46,1.2907503]
[1736670101968,0.28801013,694.42,693.45,1.2907503]
[1736670104569,0.28801013,694.42,693.46,1.2907503]
[1736670105367,0.28801013,694.42,693.45,3.11346991]
[1736670106070,0.28801013,694.42,693.46,3.00410836]
[1736670106372,0.28801013,694.42,693.46,4.82682797]
[1736670106671,0.28801013,694.42,693.47,1.82271961]
[1736670107266,0.28801013,694.42,693.46,3.00410836]
[1736670107467,0.28801013,694.42,693.45,0.8924292]
[1736670107668,0.28801013,694.42,693.45,4.00589911]
[1736670107966,0.28801013,694.42,693.45,3.11346991]
[1736670109073,0.28801013,694.42,693.46,3.00410836]
[1736670109372,0.28801013,694.42,693.46,4.82682797]
[1736670110373,0.28801013,694.42,693.47,0.89255087]
[1736670110673,0.28801013,694.42,693.47,2.71527048]
[1736670111368,0.28801013,694.42,693.48,1.2907503]
[1736670111573,0.28801013,694.42,693.48,2.18330117]
[1736670111973,0.28801013,694.42,693.48,1.2907503]
[1736670112572,0.28801013,694.42,693.48,5.18737832]
[1736670112774,0.28801013,694.42,693.49,1.82271961]
[1736670112972,0.28801013,694.42,693.48,4.82682797]
[1736670123381,0.28801013,694.42,693.49,0.89291295]
[1736670123576,0.28801013,694.42,693.49,2.71563256]
[1736670123781,0.28801013,694.42,693.49,1.82271961]
[1736670124079,0.28801013,694.42,693.48,4.82682797]
[1736670124880,0.28801013,694.42,693.49,1.82271961]
[1736670125274,0.28801013,694.42,693.48,3.00410836]
[1736670125983,0.28801013,694.42,693.48,5.71969828]
[1736670126177,0.28801013,694.42,693.49,1.82271961]
[1736670126378,0.28801013,694.42,693.48,0.89287685]
[1736670126578,0.28801013,694.42,693.48,2.71559646]
[1736670128889,0.28801013,694.42,693.48,5.71970482]
[1736670129186,0.28801013,694.42,693.49,1.82271961]
[1736670129386,0.28801013,694.42,693.48,4.82682797]
[1736670131589,0.28801013,694.42,693.49,0.89299686]
[1736670131887,0.28801013,694.42,693.49,2.71571647]
[1736670133987,0.28801013,694.42,693.49,5.71982483]
[1736670134287,0.28801013,694.42,693.5,1.82271961]
[1736670134586,0.28801013,694.42,693.49,4.82682797]
[1736670141395,0.28801013,694.42,693.49,3.00410836]
[1736670141896,0.28801013,694.42,693.47,1.2907503]
[1736670142290,0.28801013,694.42,693.4,1.82287285]
[1736670142696,0.28801013,694.42,693.39,3.00410836]
[1736670143293,0.28801013,694.42,693.38,6.11773151]
[1736670143493,0.28801013,694.42,693.39,1.82287285]
[1736670144598,0.28801013,694.42,693.39,4.82698121]
[1736670147598,0.28801013,694.42,693.38,1.2907503]
[1736670148703,0.28801013,694.42,693.37,1.2907503]
[1736670149903,0.28801013,694.42,693.36,1.2907503]
[1736670150705,0.28801013,694.42,693.32,0.892935]
[1736670150706,0.28801013,694.42,693.34,1.2907503]
[1736670151703,0.28801013,694.42,693.33,2.71539045]
[1736670152508,0.28801013,694.42,693.4,1.2907503]
[1736670153703,0.28801013,694.42,693.38,1.2907503]
[1736670154809,0.28801013,694.42,693.36,0.892935]
[1736670155110,0.28801013,694.42,693.36,3.89975056]
[1736670155312,0.28801013,694.42,693.37,1.82245545]
[1736670155511,0.28801013,694.42,693.37,2.71539045]
[1736670155912,0.28801013,694.42,693.37,1.82245545]
[1736670156107,0.28801013,694.42,693.36,4.82927101]
[1736670156914,0.28801013,694.42,693.37,1.82245545]
[1736670157114,0.28801013,694.42,693.36,3.00681556]
[1736670158014,0.28801013,694.42,693.35,0.89288905]
[1736670158213,0.28801013,694.42,693.35,1.2907503]
[1736670160520,0.28801013,694.42,693.34,1.2907503]
[1736670161022,0.28801013,694.42,693.34,4.0060948]
[1736670161225,0.28801013,694.42,693.34,3.11320575]
[1736670161419,0.28801013,694.42,693.34,1.82245545]
[1736670161615,0.28801013,694.42,693.34,0.89285489]
[1736670161815,0.28801013,694.42,693.34,2.71531034]
[1736670162824,0.28801013,694.42,693.34,2.71530905]
[1736670163523,0.28801013,694.42,693.34,2.71530011]
[1736670163723,0.28801013,694.42,693.33,2.71530011]
[1736670165021,0.28801013,694.42,693.33,5.72211567]
[1736670165225,0.28801013,694.42,693.34,2.71530011]
[1736670166729,0.28801013,694.42,693.42,1.2907503]
[1736670170330,0.28801013,694.42,693.41,1.2907503]
[1736670170727,0.28801013,694.42,693.41,2.18359496]
[1736670171030,0.28801013,694.42,693.41,1.2907503]
[1736670172832,0.28801013,694.42,693.32,3.00681556]
[1736670173329,0.28801013,694.42,693.19,2.71578251]
[1736670173330,0.28801013,694.42,693.2,1.82269248]
[1736670173630,0.28801013,694.42,693.19,4.82950804]
[1736670173828,0.28801013,694.42,693.2,1.82269248]
[1736670174029,0.28801013,694.42,693.19,3.00681556]
[1736670174229,0.28801013,694.42,693.19,3.89981115]
[1736670174429,0.28801013,694.42,693.2,1.82269248]
[1736670175231,0.28801013,694.42,693.18,4.82950804]
[1736670175530,0.28801013,694.42,693.19,0.89287024]
[1736670175732,0.28801013,694.42,693.19,2.71556272]
[1736670176032,0.28801013,694.42,693.19,2.71548119]
[1736670177027,0.28801013,694.42,693.18,2.71548119]
[1736670179827,0.28801013,694.42,693.18,5.72229675]
[1736670180028,0.28801013,694.42,693.19,2.71548119]
[1736670181858,0.28801013,694.42,693.35,1.2907503]
[1736670182634,0.28801013,694.42,693.34,1.2907503]
[1736670183835,0.28801013,694.42,693.35,1.2907503]
[1736670185133,0.28801013,694.42,693.36,1.2907503]
[1736670186135,0.28801013,694.42,693.37,1.2907503]
[1736670187238,0.28801013,694.42,693.38,1.2907503]
[1736670188538,0.28801013,694.42,693.39,1.2907503]
[1736670192441,0.28801013,694.42,693.38,2.71521978]
[1736670192643,0.28801013,694.42,693.38,5.72203534]
[1736670192845,0.28801013,694.42,693.39,2.71521978]
[1736670193344,0.28801013,694.42,693.4,1.2907503]
[1736670193543,0.28801013,694.42,693.4,2.1832776]
[1736670194244,0.28801013,694.42,693.41,1.2907503]
[1736670194443,0.28801013,694.42,693.41,4.00597008]
[1736670194643,0.28801013,694.42,693.42,0.8925273]
[1736670195744,0.28801013,694.42,693.42,3.89934286]
[1736670195944,0.28801013,694.42,693.43,1.82269248]
[1736670196144,0.28801013,694.42,693.43,4.00597008]
[1736670196444,0.28801013,694.42,693.44,0.8925273]
[1736670197042,0.28801013,694.42,693.43,2.71521978]
[1736670197345,0.28801013,694.42,693.43,5.72203534]
[1736670197545,0.28801013,694.42,693.44,2.71521978]
[1736670199642,0.28801013,694.42,693.44,1.82269248]
[1736670199845,0.28801013,694.42,693.43,4.82950804]
[1736670200946,0.28801013,694.42,693.44,1.82269248]
[1736670201148,0.28801013,694.42,693.42,4.82950804]
[1736670201343,0.28801013,694.42,693.43,0.89243224]
[1736670201548,0.28801013,694.42,693.43,2.71512472]
[1736670204146,0.28801013,694.42,693.43,2.71506919]
[1736670204548,0.28801013,694.42,693.43,1.82269248]
[1736670205343,0.28801013,694.42,693.43,2.71508235]
[1736670205541,0.28801013,694.42,693.42,2.71508235]
[1736670207549,0.28801013,694.42,693.42,5.72189791]
[1736670207750,0.28801013,694.42,693.43,2.71508235]
[1736670210952,0.28801013,694.42,693.43,5.72189791]
[1736670211152,0.28801013,694.42,693.44,4.00583265]
[1736670211451,0.28801013,694.42,693.45,0.89238987]
[1736670212349,0.28801013,694.42,693.45,3.89920543]
[1736670212549,0.28801013,694.42,693.46,1.82269248]
[1736670212747,0.28801013,694.42,693.45,4.82950804]
[1736670213547,0.28801013,694.42,693.46,1.82269248]
[1736670214653,0.28801013,694.42,693.4,4.82950804]
[1736670215558,0.28801013,694.42,693.41,1.82269248]
[1736670215758,0.28801013,694.42,693.4,3.00681556]
[1736670216757,0.28801013,694.42,693.4,1.82269248]
[1736670217059,0.28801013,694.42,693.38,0.89296689]
[1736670217255,0.28801013,694.42,693.38,2.71565937]
[1736670219661,0.28801013,694.42,693.38,1.82269248]
[1736670220054,0.28801013,694.42,693.36,4.82950804]
[1736670220562,0.28801013,694.42,693.37,1.82269248]
[1736670220964,0.28801013,694.42,693.36,3.00681556]
[1736670221664,0.28801013,694.42,693.36,0.89294522]
[1736670221962,0.28801013,694.42,693.34,2.7156377]
[1736670223660,0.28801013,694.42,693.33,2.7156377]
[1736670225164,0.28801013,694.42,693.34,1.2907503]
[1736670225465,0.28801013,694.42,693.34,2.18369552]
[1736670225962,0.28801013,694.42,693.34,5.19051108]
[1736670226162,0.28801013,694.42,693.35,4.006388]
[1736670226363,0.28801013,694.42,693.36,0.89294522]
[1736670227662,0.28801013,694.42,693.36,3.89976078]
[1736670227857,0.28801013,694.42,693.37,1.82269248]
[1736670228063,0.28801013,694.42,693.37,2.7156377]
[1736670229469,0.28801013,694.42,693.36,2.7156377]
[1736670231161,0.28801013,694.42,693.36,5.72245326]
[1736670231467,0.28801013,694.42,693.37,4.006388]
[1736670231668,0.28801013,694.42,693.38,0.89294522]
[1736670232366,0.28801013,694.42,693.38,2.18369552]
[1736670232669,0.28801013,694.42,693.38,5.19051108]